fUST/lending_fUST_20250911
["ID","MTS","AMOUNT","RATE_DAILY","PERIOD"]
[384818514,1757572234395,-480.0,0.00013698,2]
[384818515,1757572234404,-480.0,0.00013698,2]
[384818516,1757572234414,-580.5047071,0.00013698,2]
[384818517,1757572234424,-480.0,0.00013698,2]
[384818518,1757572234434,-674.4,0.00013698,2]
[384818519,1757572234443,-481.85300395,0.00013698,2]
[384818520,1757572234453,-480.0,0.00013698,2]
[384818521,1757572234462,-177.64582632,0.00013698,2]
[384818522,1757572234472,-480.0,0.00013698,2]
[384818523,1757572234481,-480.0,0.00013698,2]
[384818524,1757572234491,-480.0,0.00013698,2]
[384818525,1757572234500,-480.0,0.00013698,2]
[384818526,1757572234510,-436.24143181,0.00013698,2]
[384818527,1757572234519,-480.0,0.00013698,2]
[384818528,1757572234538,-481.34127548,0.00013698,2]
[384818529,1757572234550,-480.0,0.00013698,2]
[384818530,1757572234561,-481.64027264,0.00013698,2]
[384818531,1757572234571,-488.5033362,0.00013698,2]
[384818532,1757572234581,-480.0,0.00013698,2]
[384818533,1757572234590,-480.0,0.00013698,2]
[384818534,1757572234600,-480.0,0.00013698,2]
[384818535,1757572234610,-480.0,0.00013698,2]
[384818536,1757572234620,-480.0,0.00013698,2]
[384818537,1757572234630,-480.0,0.00013698,2]
[384818538,1757572234640,-1006.35,0.00013698,2]
[384818539,1757572234650,-480.0,0.00013698,2]
[384818540,1757572234660,-480.0,0.00013698,2]
[384818541,1757572234670,-480.0,0.00013698,2]
[384818542,1757572234680,-480.0,0.00013698,2]
[384818543,1757572234690,-480.0,0.00013698,2]
[384818544,1757572234700,-480.0,0.00013698,2]
[384818545,1757572234710,-480.0,0.00013698,2]
[384818546,1757572234720,-480.0,0.00013698,2]
[384818547,1757572234729,-480.0,0.00013698,2]
[384818548,1757572234739,-480.0,0.00013698,2]
[384818549,1757572234749,-500.98883554,0.00013698,2]
[384818550,1757572234759,-480.0,0.00013698,2]
[384818551,1757572234769,-480.0,0.00013698,2]
[384818552,1757572234778,-480.0,0.00013698,2]
[384818553,1757572234788,-480.0,0.00013698,2]
[384818554,1757572234798,-480.0,0.00013698,2]
[384818555,1757572234807,-480.0,0.00013698,2]
[384818556,1757572234817,-487.32232451,0.00013698,2]
[384818557,1757572234828,-480.0,0.00013698,2]
[384818558,1757572234838,-480.0,0.00013698,2]
[384818559,1757572234848,-480.0,0.00013698,2]
[384818560,1757572234858,-480.0,0.00013698,2]
[384818561,1757572234867,-480.0,0.00013698,2]
[384818562,1757572234877,-480.0,0.00013698,2]
[384818563,1757572234886,-498.59205157,0.00013698,2]
[384818564,1757572234896,-480.0,0.00013698,2]
[384818565,1757572234905,-480.0,0.00013698,2]
[384818566,1757572234915,-480.0,0.00013698,2]
[384818567,1757572234924,-480.0,0.00013698,2]
[384818568,1757572234936,-480.0,0.00013698,2]
[384818569,1757572234947,-480.0,0.00013698,2]
[384818570,1757572234957,-480.0,0.00013698,2]
[384818571,1757572234968,-180.09853845,0.00013698,2]
[384818572,1757572234977,-480.0,0.00013698,2]
[384818573,1757572234989,-480.0,0.00013698,2]
[384818574,1757572234999,-480.0,0.00013698,2]
[384818575,1757572235010,-480.0,0.00013698,2]
[384818576,1757572235019,-480.0,0.00013698,2]
[384818577,1757572235029,-480.0,0.00013698,2]
[384818578,1757572235039,-480.0,0.00013698,2]
[384818579,1757572235049,-480.0,0.00013698,2]
[384818580,1757572235059,-4332.2,0.00013698,2]
[384818581,1757572235069,-480.0,0.00013698,2]
[384818582,1757572235079,-480.0,0.00013698,2]
[384818583,1757572235089,-480.0,0.00013698,2]
[384818584,1757572235099,-525.42,0.00013698,2]
[384818585,1757572235111,-480.0,0.00013698,2]
[384818586,1757572235122,-480.0,0.00013698,2]
[384818587,1757572235132,-480.0,0.00013698,2]
[384818588,1757572235142,-480.79346979,0.00013698,2]
[384818589,1757572235151,-480.0,0.00013698,2]
[384818590,1757572235163,-480.0,0.00013698,2]
[384818591,1757572235172,-787.0,0.00013698,2]
[384818592,1757572235181,-480.0,0.00013698,2]
[384818593,1757572235191,-480.0,0.00013698,2]
[384818594,1757572235200,-480.0,0.00013698,2]
[384818595,1757572235210,-480.0,0.00013698,2]
[384818596,1757572235220,-480.0,0.00013698,2]
[384818597,1757572235229,-480.0,0.00013698,2]
[384818598,1757572235239,-480.0,0.00013698,2]
[384818599,1757572235249,-480.0,0.00013698,2]
[384818600,1757572235258,-480.10463933,0.00013698,2]
[384818601,1757572235267,-480.0,0.00013698,2]
[384818602,1757572235277,-480.0,0.00013698,2]
[384818603,1757572235287,-480.0,0.00013698,2]
[384818604,1757572235297,-480.0,0.00013698,2]
[384818605,1757572235306,-480.0,0.00013698,2]
[384818606,1757572235316,-480.0,0.00013698,2]
[384818607,1757572235326,-480.0,0.00013698,2]
[384818608,1757572235336,-480.0,0.00013698,2]
[384818609,1757572235347,-480.0,0.00013698,2]
[384818610,1757572235356,-480.0,0.00013698,2]
[384818611,1757572235367,-489.12243026,0.00013698,2]
[384818612,1757572235378,-480.0,0.00013698,2]
[384818613,1757572235390,-480.0,0.00013698,2]
[384818614,1757572235400,-480.0,0.00013698,2]
[384818615,1757572235411,-480.0,0.00013698,2]
[384818616,1757572235421,-1000.0,0.00013698,2]
[384818617,1757572235431,-540.66306645,0.00013698,2]
[384818618,1757572235440,-480.0,0.00013698,2]
[384818619,1757572235451,-480.0,0.00013698,2]
[384818620,1757572235461,-366.48113628,0.00013698,2]
[384818621,1757572235470,-486.75398647,0.00013698,2]
[384818622,1757572235480,-480.0,0.00013698,2]
[384818623,1757572235490,-480.0,0.00013698,2]
[384818624,1757572235500,-480.0,0.00013698,2]
[384818625,1757572235510,-444.59722136,0.00013698,2]
[384818626,1757572235520,-480.0,0.00013698,2]
[384818627,1757572235529,-484.81232368,0.00013698,2]
[384818628,1757572235541,-481.32178641,0.00013698,2]
[384818629,1757572235550,-464.64705079,0.00013698,2]
[384818630,1757572235560,-3320.6,0.00013698,2]
[384818631,1757572235569,-485.69275312,0.00013698,2]
[384818632,1757572235579,-480.0,0.00013698,2]
[384818633,1757572235588,-480.0,0.00013698,2]
[384818634,1757572235599,-480.0,0.00013698,2]
[384818635,1757572235608,-456.69992205,0.00013698,2]
[384818636,1757572235618,-480.0,0.00013698,2]
[384818637,1757572235627,-480.0,0.00013698,2]
[384818638,1757572235636,-480.0,0.00013698,2]
[384818639,1757572235646,-480.0,0.00013698,2]
[384818640,1757572235656,-480.0,0.00013698,2]
[384818641,1757572235666,-480.0,0.00013698,2]
[384818642,1757572235676,-480.0,0.00013698,2]
[384818643,1757572235686,-480.0,0.00013698,2]
[384818644,1757572235695,-593.53786856,0.00013698,2]
[384818645,1757572235704,-482.44597828,0.00013698,2]
[384818646,1757572235826,-480.0,0.00013698,2]
[384818647,1757572235836,-480.0,0.00013698,2]
[384818648,1757572235846,-480.0,0.00013698,2]
[384818649,1757572235855,-480.0,0.00013698,2]
[384818650,1757572235864,-480.0,0.00013698,2]
[384818651,1757572235874,-480.0,0.00013698,2]
[384818652,1757572235884,-480.0,0.00013698,2]
[384818653,1757572235894,-480.0,0.00013698,2]
[384818654,1757572235903,-483.90523875,0.00013698,2]
[384818655,1757572235913,-480.0,0.00013698,2]
[384818656,1757572235923,-480.0,0.00013698,2]
[384818657,1757572235932,-480.0,0.00013698,2]
[384818658,1757572235942,-500.0,0.00013698,2]
[384818659,1757572235951,-12506.1340539,0.00013698,2]
[384818660,1757572235960,-282.624231,0.00013699,2]
[384818661,1757572235970,-6635.22418787,0.00013872,2]
[384818662,1757572235979,-2485.90070894,0.00013872,2]
[384818663,1757572235988,-297.995147,0.00013961,2]
[384818664,1757572235998,-886.00815,0.00013961,2]
[384818665,1757572236007,-500.0,0.00013971,2]
[384818666,1757572236018,-485.30935772,0.00013972,2]
[384818667,1757572236027,-480.0,0.00013972,2]
[384818668,1757572236037,-481.81968988,0.00013972,2]
[384818669,1757572236046,-480.0,0.00013972,2]
[384818670,1757572236055,-480.0,0.00013972,2]
[384818671,1757572236065,-480.0,0.00013972,2]
[384818672,1757572236074,-480.0,0.00013972,2]
[384818673,1757572236084,-480.0,0.00013972,2]
[384818674,1757572236094,-485.15193112,0.00013972,2]
[384818675,1757572236103,-480.0,0.00013972,2]
[384818676,1757572236112,-484.29542827,0.00013972,2]
[384818677,1757572236122,-480.0,0.00013972,2]
[384818678,1757572236131,-480.0,0.00013972,2]
[384818679,1757572236141,-483.99799319,0.00013972,2]
[384818680,1757572236151,-480.0,0.00013972,2]
[384818681,1757572236160,-481.60384603,0.00013972,2]
[384818682,1757572236170,-536.56546254,0.00013972,2]
[384818683,1757572236179,-480.0,0.00013972,2]
[384818684,1757572236188,-480.0,0.00013972,2]
[384818685,1757572236198,-482.05539428,0.00013972,2]
[384818686,1757572236208,-480.0,0.00013972,2]
[384818687,1757572236217,-480.0,0.00013972,2]
[384818688,1757572236228,-480.08904058,0.00013972,2]
[384818689,1757572236239,-480.0,0.00013972,2]
[384818690,1757572236250,-480.0,0.00013972,2]
[384818691,1757572236259,-480.0,0.00013972,2]
[384818692,1757572236269,-480.0,0.00013972,2]
[384818693,1757572236278,-480.0,0.00013972,2]
[384818694,1757572236287,-480.0,0.00013972,2]
[384818695,1757572236297,-480.0,0.00013972,2]
[384818696,1757572236306,-617.55381608,0.00013972,2]
[384818697,1757572236315,-533.47646598,0.00013972,2]
[384818698,1757572236326,-480.0,0.00013972,2]
[384818699,1757572236336,-480.0,0.00013972,2]
[384818700,1757572236345,-487.06498442,0.00013972,2]
[384818701,1757572236354,-480.0,0.00013972,2]
[384818702,1757572236363,-335.10795816,0.00013972,2]
[384818703,1757572236373,-482.84309677,0.00013972,2]
[384818704,1757572236384,-480.0,0.00013972,2]
[384818705,1757572236393,-320.56454608,0.00013972,2]
[384818706,1757572236403,-480.0,0.00013972,2]
[384818707,1757572236412,-481.44941851,0.00013972,2]
[384818708,1757572236422,-339.06789582,0.00013972,2]
[384818709,1757572236431,-480.0,0.00013972,2]
[384818710,1757572236441,-480.0,0.00013972,2]
[384818711,1757572236450,-480.0,0.00013972,2]
[384818712,1757572236459,-483.7,0.00013972,2]
[384818713,1757572236469,-483.65562775,0.00013972,2]
[384818714,1757572236478,-480.0,0.00013972,2]
[384818715,1757572236488,-482.40293605,0.00013972,2]
[384818716,1757572236498,-488.48397421,0.00013972,2]
[384818717,1757572236510,-480.0,0.00013972,2]
[384818718,1757572236520,-480.0,0.00013972,2]
[384818719,1757572236529,-480.0,0.00013972,2]
[384818720,1757572236539,-488.72321125,0.00013972,2]
[384818721,1757572236549,-480.0,0.00013972,2]
[384818722,1757572236559,-480.0,0.00013972,2]
[384818723,1757572236568,-480.0,0.00013972,2]
[384818724,1757572236577,-480.0,0.00013972,2]
[384818725,1757572236586,-490.03758891,0.00013972,2]
[384818726,1757572236595,-486.73375922,0.00013972,2]
[384818727,1757572236604,-480.0,0.00013972,2]
[384818728,1757572236614,-480.0,0.00013972,2]
[384818729,1757572236623,-480.0,0.00013972,2]
[384818730,1757572236632,-480.0,0.00013972,2]
[384818731,1757572236642,-485.37766183,0.00013972,2]
[384818732,1757572236651,-480.0,0.00013972,2]
[384818733,1757572236661,-480.0,0.00013972,2]
[384818734,1757572236670,-480.0,0.00013972,2]
[384818735,1757572236679,-480.0,0.00013972,2]
[384818736,1757572236688,-480.0,0.00013972,2]
[384818737,1757572236697,-480.0,0.00013972,2]
[384818738,1757572236707,-480.79448079,0.00013972,2]
[384818739,1757572236716,-480.0,0.00013972,2]
[384818740,1757572236725,-482.98291377,0.00013972,2]
[384818741,1757572236734,-480.0,0.00013972,2]
[384818742,1757572236743,-381.13830896,0.00013972,2]
[384818743,1757572236752,-480.0,0.00013972,2]
[384818744,1757572236761,-480.0,0.00013972,2]
[384818745,1757572236770,-484.31076592,0.00013972,2]
[384818746,1757572236780,-490.59108222,0.00013972,2]
[384818747,1757572236789,-480.0,0.00013972,2]
[384818748,1757572236799,-480.0,0.00013972,2]
[384818749,1757572236808,-487.8783508,0.00013972,2]
[384818750,1757572236817,-480.0,0.00013972,2]
[384818751,1757572236826,-480.0,0.00013972,2]
[384818752,1757572236836,-480.0,0.00013972,2]
[384818753,1757572236845,-481.8082739,0.00013972,2]
[384818754,1757572236854,-480.0,0.00013972,2]
[384818755,1757572236864,-480.0,0.00013972,2]
[384818756,1757572236873,-480.0,0.00013972,2]
[384818757,1757572236884,-480.0,0.00013972,2]
[384818758,1757572236895,-480.0,0.00013972,2]
[384818759,1757572236904,-480.0,0.00013972,2]
[384818760,1757572236913,-484.05642475,0.00013972,2]
[384818761,1757572236922,-480.0,0.00013972,2]
[384818762,1757572236933,-480.0,0.00013972,2]
[384818763,1757572236942,-480.0,0.00013972,2]
[384818764,1757572236952,-480.0,0.00013972,2]
[384818765,1757572236962,-480.0,0.00013972,2]
[384818766,1757572236971,-480.0,0.00013972,2]
[384818767,1757572236981,-619.15540932,0.00013972,2]
[384818768,1757572236990,-480.0,0.00013972,2]
[384818769,1757572236999,-1164.99,0.00013972,2]
[384818770,1757572237009,-480.0,0.00013972,2]
[384818771,1757572237019,-345.67666122,0.00013972,2]
[384818772,1757572237036,-134.32333878,0.00013972,2]
[384818773,1757572237045,-480.0,0.00013972,2]
[384818774,1757572237055,-488.46339898,0.00013972,2]
[384818775,1757572237064,-232.35061858,0.00013972,2]
[384818776,1757572237132,760.49,0.00012329,2]
[384818791,1757572238321,-308.93753283,0.00013698,2]
[384818800,1757572238401,-171.06246717,0.00013698,2]
[384818802,1757572238410,-571.4739135,0.00013698,2]
[384818804,1757572238420,-480.0,0.00013698,2]
[384818806,1757572238430,-247.64938142,0.00013972,2]
[384818808,1757572238439,-480.0,0.00013972,2]
[384818810,1757572238449,-480.0,0.00013972,2]
[384818812,1757572238459,-480.0,0.00013972,2]
[384818814,1757572238468,-552.85357555,0.00013972,2]
[384818816,1757572238478,-501.35900831,0.00013972,2]
[384818818,1757572238487,-480.0,0.00013972,2]
[384818820,1757572238496,-480.0,0.00013972,2]
[384818822,1757572238506,-480.0,0.00013972,2]
[384818824,1757572238515,-480.0,0.00013972,2]
[384818826,1757572238524,-480.0,0.00013972,2]
[384818828,1757572238534,-480.0,0.00013972,2]
[384818830,1757572238543,-480.0,0.00013972,2]
[384818832,1757572238553,-480.0,0.00013972,2]
[384818834,1757572238563,-480.0,0.00013972,2]
[384818836,1757572238572,-486.16179208,0.00013972,2]
[384818838,1757572238582,-485.14562723,0.00013972,2]
[384818840,1757572238591,-480.0,0.00013972,2]
[384818841,1757572238601,-482.87922254,0.00013972,2]
[384818843,1757572238610,-342.69892464,0.00013972,2]
[384818845,1757572238619,-480.0,0.00013972,2]
[384818847,1757572238630,-480.0,0.00013972,2]
[384818850,1757572238641,-480.0,0.00013972,2]
[384818851,1757572238650,-532.19230351,0.00013972,2]
[384818854,1757572238660,-480.0,0.00013972,2]
[384818855,1757572238669,-480.0,0.00013972,2]
[384818858,1757572238680,-480.0,0.00013972,2]
[384818860,1757572238689,-480.0,0.00013972,2]
[384818861,1757572238698,-480.0,0.00013972,2]
[384818864,1757572238708,-480.0,0.00013972,2]
[384818866,1757572238717,-480.0,0.00013972,2]
[384818867,1757572238820,-480.0,0.00013972,2]
[384818868,1757572238830,-480.0,0.00013972,2]
[384818869,1757572238839,-480.0,0.00013972,2]
[384818870,1757572238849,-600.86658604,0.00013972,2]
[384818871,1757572238858,-480.0,0.00013972,2]
[384818872,1757572238867,-573.11559457,0.00013972,2]
[384818873,1757572238876,-480.0,0.00013972,2]
[384818874,1757572238885,-480.0,0.00013972,2]
[384818875,1757572238895,-480.0,0.00013972,2]
[384818876,1757572238904,-480.0,0.00013972,2]
[384818877,1757572238913,-480.0,0.00013972,2]
[384818878,1757572238922,-484.78223456,0.00013972,2]
[384818879,1757572238931,-480.0,0.00013972,2]
[384818880,1757572238940,-486.27974761,0.00013972,2]
[384818881,1757572238949,-481.85718522,0.00013972,2]
[384818882,1757572238958,-153.19,0.00013972,2]
[384818883,1757572238967,-480.0,0.00013972,2]
[384818884,1757572238976,-480.0,0.00013972,2]
[384818885,1757572238985,-480.0,0.00013972,2]
[384818886,1757572238997,-480.0,0.00013972,2]
[384818887,1757572239006,-482.61,0.00013972,2]
[384818888,1757572239015,-480.0,0.00013972,2]
[384818889,1757572239024,-480.0,0.00013972,2]
[384818890,1757572239033,-480.0,0.00013972,2]
[384818891,1757572239042,-480.0,0.00013972,2]
[384818893,1757572239051,-497.80431111,0.00013972,2]
[384818894,1757572239061,-480.0,0.00013972,2]
[384818895,1757572239071,-480.0,0.00013972,2]
[384818897,1757572239080,-480.0,0.00013972,2]
[384818899,1757572239090,-480.0,0.00013972,2]
[384818901,1757572239099,-480.0,0.00013972,2]
[384818903,1757572239108,-480.0,0.00013972,2]
[384818905,1757572239118,-480.0,0.00013972,2]
[384818907,1757572239127,-480.0,0.00013972,2]
[384818909,1757572239137,-480.0,0.00013972,2]
[384818911,1757572239146,-480.0,0.00013972,2]
[384818913,1757572239156,-487.40648691,0.00013972,2]
[384818915,1757572239165,-480.0,0.00013972,2]
[384818917,1757572239176,-492.80369066,0.00013972,2]
[384818919,1757572239185,-483.12809752,0.00013972,2]
[384818921,1757572239194,-480.0,0.00013972,2]
[384818923,1757572239204,-500.0,0.00013972,2]
[384818925,1757572239213,-480.0,0.00013972,2]
[384818927,1757572239223,-480.0,0.00013972,2]
[384818929,1757572239232,-2160.88,0.00013972,2]
[384818931,1757572239242,-480.0,0.00013972,2]
[384818933,1757572239251,-480.0,0.00013972,2]
[384818935,1757572239261,-480.0,0.00013972,2]
[384818937,1757572239271,-480.0,0.00013972,2]
[384818939,1757572239280,-2826.24,0.00013972,2]
[384818941,1757572239289,-480.0,0.00013972,2]
[384818943,1757572239299,-480.0,0.00013972,2]
[384818945,1757572239308,-480.0,0.00013972,2]
[384818947,1757572239317,-489.30032299,0.00013972,2]
[384818949,1757572239327,-480.0,0.00013972,2]
[384818951,1757572239337,-480.06145799,0.00013972,2]
[384818953,1757572239346,-480.0,0.00013972,2]
[384818955,1757572239355,-486.02498568,0.00013972,2]
[384818957,1757572239364,-480.0,0.00013972,2]
[384818959,1757572239373,-480.0,0.00013972,2]
[384818961,1757572239382,-480.0,0.00013972,2]
[384818963,1757572239391,-480.0,0.00013972,2]
[384818965,1757572239401,-480.0,0.00013972,2]
[384818967,1757572239413,-480.0,0.00013972,2]
[384818969,1757572239422,-480.0,0.00013972,2]
[384818971,1757572239432,-480.0,0.00013972,2]
[384818973,1757572239441,-480.0,0.00013972,2]
[384818975,1757572239450,-480.0,0.00013972,2]
[384818976,1757572239459,-480.0,0.00013972,2]
[384818977,1757572239468,-480.0,0.00013972,2]
[384818978,1757572239478,-533.0,0.00013972,2]
[384818979,1757572239487,-480.0,0.00013972,2]
[384818980,1757572239495,-480.0,0.00013972,2]
[384818981,1757572239505,-480.0,0.00013972,2]
[384818982,1757572239513,-965.33,0.00013972,2]
[384818983,1757572239523,-480.0,0.00013972,2]
[384818984,1757572239532,-239.59,0.00013972,2]
[384818985,1757572239540,-480.0,0.00013972,2]
[384818986,1757572239549,-480.0,0.00013972,2]
[384818987,1757572239558,-480.0,0.00013972,2]
[384818988,1757572239567,-674.4,0.00013972,2]
[384818989,1757572239576,-480.0,0.00013972,2]
[384818990,1757572239585,-480.0,0.00013972,2]
[384818991,1757572239593,-480.0,0.00013972,2]
[384818992,1757572239602,-480.0,0.00013972,2]
[384818993,1757572239611,-480.0,0.00013972,2]
[384818994,1757572239620,-315.46805423,0.00013972,2]
[384818995,1757572239629,-494.8850646,0.00013972,2]
[384818996,1757572239637,-480.0,0.00013972,2]
[384818997,1757572239646,-480.0,0.00013972,2]
[384818998,1757572239656,-1006.35,0.00013972,2]
[384818999,1757572239665,-480.0,0.00013972,2]
[384819000,1757572239675,-480.0,0.00013972,2]
[384819001,1757572239685,-491.35701679,0.00013972,2]
[384819002,1757572239694,-480.0,0.00013972,2]
[384819003,1757572239703,-600.50889772,0.00013972,2]
[384819004,1757572239712,-480.0,0.00013972,2]
[384819005,1757572239721,-480.0,0.00013972,2]
[384819006,1757572239730,-460.54234526,0.00013972,2]
[384819007,1757572239738,-480.0,0.00013972,2]
[384819008,1757572239747,-480.0,0.00013972,2]
[384819009,1757572239756,-480.0,0.00013972,2]
[384819010,1757572239765,-480.0,0.00013972,2]
[384819011,1757572239774,-480.0,0.00013972,2]
[384819012,1757572239783,-480.0,0.00013972,2]
[384819013,1757572239793,-480.0,0.00013972,2]
[384819014,1757572239802,-480.0,0.00013972,2]
[384819015,1757572239812,-480.0,0.00013972,2]
[384819016,1757572239821,-480.0,0.00013972,2]
[384819017,1757572239830,-480.0,0.00013972,2]
[384819018,1757572239839,-480.0,0.00013972,2]
[384819019,1757572239848,-480.0,0.00013972,2]
[384819020,1757572239857,-480.0,0.00013972,2]
[384819021,1757572239866,-480.0,0.00013972,2]
[384819022,1757572239875,-4332.2,0.00013972,2]
[384819023,1757572239885,-480.0,0.00013972,2]
[384819024,1757572239894,-480.0,0.00013972,2]
[384819025,1757572239903,-525.42,0.00013972,2]
[384819026,1757572239912,-480.0,0.00013972,2]
[384819027,1757572239921,-480.0,0.00013972,2]
[384819028,1757572239930,-480.0,0.00013972,2]
[384819029,1757572239940,-787.0,0.00013972,2]
[384819030,1757572239949,-480.0,0.00013972,2]
[384819031,1757572239958,-480.0,0.00013972,2]
[384819032,1757572239967,-480.0,0.00013972,2]
[384819033,1757572239976,-480.0,0.00013972,2]
[384819034,1757572239985,-482.08458963,0.00013972,2]
[384819035,1757572239995,-480.0,0.00013972,2]
[384819036,1757572240004,-352.22122218,0.00013972,2]
[384819038,1757572240014,-480.0,0.00013972,2]
[384819039,1757572240023,-480.0,0.00013972,2]
[384819040,1757572240033,-275.09090006,0.00013972,2]
[384819041,1757572240042,-480.0,0.00013972,2]
[384819042,1757572240051,-480.0,0.00013972,2]
[384819043,1757572240061,-480.0,0.00013972,2]
[384819044,1757572240070,-1025.57118726,0.00013972,2]
[384819045,1757572240080,-597.6317985,0.00013972,2]
[384819046,1757572240090,-480.0,0.00013972,2]
[384819047,1757572240099,-480.0,0.00013972,2]
[384819048,1757572240108,-615.2,0.00013972,2]
[384819049,1757572240118,-3320.6,0.00013972,2]
[384819050,1757572240127,-480.0,0.00013972,2]
[384819051,1757572240136,-480.0,0.00013972,2]
[384819052,1757572240146,-480.0,0.00013972,2]
[384819053,1757572240155,-483.92336568,0.00013972,2]
[384819054,1757572240165,-480.0,0.00013972,2]
[384819055,1757572240175,-480.0,0.00013972,2]
[384819056,1757572240184,-480.0,0.00013972,2]
[384819057,1757572240194,-480.0,0.00013972,2]
[384819058,1757572240203,-480.0,0.00013972,2]
[384819059,1757572240213,-480.0,0.00013972,2]
[384819060,1757572240222,-480.0,0.00013972,2]
[384819061,1757572240231,-480.0,0.00013972,2]
[384819062,1757572240241,-480.0,0.00013972,2]
[384819063,1757572240251,-338.48783809,0.00013972,2]
[384819064,1757572240260,-480.0,0.00013972,2]
[384819065,1757572240269,-480.0,0.00013972,2]
[384819066,1757572240278,-500.0,0.00013972,2]
[384819067,1757572240287,-501.09970239,0.00013973,2]
[384819068,1757572240297,-500.0,0.00013973,2]
[384819069,1757572240306,-500.0,0.00013973,2]
[384819070,1757572240316,-500.0,0.00013973,2]
[384819071,1757572240325,-500.0,0.00013973,2]
[384819072,1757572240334,-500.0,0.00013973,2]
[384819073,1757572240344,-500.0,0.00013973,2]
[384819074,1757572240353,-500.0,0.00013973,2]
[384819075,1757572240362,-500.0,0.00013973,2]
[384819076,1757572240372,-500.0,0.00013973,2]
[384819077,1757572240381,-500.0,0.00013973,2]
[384819078,1757572240394,-160.87432306,0.00013973,2]
[384819079,1757572240404,-500.0,0.00013973,2]
[384819080,1757572240413,-500.0,0.00013973,2]
[384819081,1757572240422,-500.0,0.00013973,2]
[384819082,1757572240432,-500.0,0.00013973,2]
[384819083,1757572240442,-500.0,0.00013973,2]
[384819084,1757572240452,-500.0,0.00013973,2]
[384819085,1757572240461,-500.0,0.00013973,2]
[384819086,1757572240471,-500.0,0.00013973,2]
[384819087,1757572240481,-160.0,0.00013988,2]
[384819088,1757572240490,-160.0,0.00013988,2]
[384819090,1757572240499,-417.15472785,0.00013988,2]
[384819091,1757572240509,-217.69300629,0.00013988,2]
[384819093,1757572240518,-846.96613202,0.00013988,2]
[384819094,1757572240528,-160.0,0.00013988,2]
[384819095,1757572240537,-530.95967032,0.00013988,2]
[384819096,1757572240546,-233.10680167,0.00013988,2]
[384819098,1757572240556,-500.0,0.00013989,2]
[384819099,1757572240566,-500.0,0.00013989,2]
[384819100,1757572240575,-500.0,0.00013989,2]
[384819101,1757572240585,-54210.47982021,0.0001399,2]
[384819102,1757572240594,-1718.51280041,0.00014011,2]
[384819103,1757572240604,-500.0,0.00014179,2]
[384819104,1757572240613,-157.0,0.00014179,2]
[384819105,1757572240623,-157.0,0.00014179,2]
[384819106,1757572240633,-157.0,0.00014179,2]
[384819107,1757572240642,-302.47220801,0.00014179,2]
[384819108,1757572240652,-158.77468404,0.00014179,2]
[384819109,1757572240661,-157.0,0.00014179,2]
[384819110,1757572240670,-254.96474888,0.00014179,2]
[384819112,1757572240681,-157.09891341,0.00014179,2]
[384819113,1757572240690,-157.0,0.00014179,2]
[384819114,1757572240699,-157.0,0.00014179,2]